fUSD/lending_fUSD_20251101
["ID","MTS","AMOUNT","RATE_DAILY","PERIOD"]
[392799266,1761960871988,500.0,0.00030136,120]
[392799267,1761960878674,500.0,0.00030136,120]
[392799268,1761960893959,156.79848879,0.00030136,120]
[392799269,1761960900462,500.0,0.00030136,120]
[392799270,1761960906450,500.0,0.00030136,120]
[392799271,1761960907338,500.0,0.00030136,120]
[392799272,1761960915382,589.4354294,0.00030136,120]
[392799276,1761960930399,500.0,0.00030136,120]
[392799277,1761960941271,2897.14,0.00030137,120]
[392799278,1761960952858,467.71507023,0.00030136,120]
[392799279,1761960956838,500.0,0.00030136,120]
[392799280,1761960976634,500.0,0.00030136,120]
[392799281,1761960984076,360.71836044,0.00030136,120]
[392799282,1761960985169,500.0,0.00030136,120]
[392799283,1761960985509,387.03799337,0.00030136,120]
[392799284,1761960988504,500.0,0.00030136,120]
[392799285,1761960993086,500.0,0.00030136,120]
[392799286,1761960993931,398.82369699,0.00030136,120]
[392799287,1761960997498,500.0,0.00030136,120]
[392799288,1761960998618,500.0,0.00030136,120]
[392799289,1761960998927,500.0,0.00030136,120]
[392799290,1761961006324,500.0,0.00030136,120]
[392799291,1761961019713,500.0,0.00030136,120]
[392799293,1761961021395,178.43259322,0.00030136,120]
[392799295,1761961034630,500.0,0.00030136,120]
[392799296,1761961037399,1046.21,0.00030136,120]
[392799299,1761961043534,500.0,0.00030136,120]
[392799300,1761961048562,500.0,0.00030136,120]
[392799302,1761961058058,500.0,0.00030136,120]
[392799303,1761961059056,500.0,0.00030136,120]
[392799304,1761961061327,500.0,0.00030136,120]
[392799307,1761961062888,500.0,0.00030136,120]
[392799308,1761961063330,589.75435064,0.00030136,120]
[392799309,1761961063920,500.0,0.00030136,120]
[392799310,1761961068490,486.28924751,0.00030136,120]
[392799311,1761961068726,500.0,0.00030136,120]
[392799313,1761961070901,500.0,0.00030136,120]
[392799314,1761961074054,500.0,0.00030136,120]
[392799316,1761961077889,520.42,0.00030136,120]
[392799317,1761961079656,500.0,0.00030136,120]
[392799318,1761961080960,500.0,0.00030136,120]
[392799319,1761961081416,500.0,0.00030136,120]
[392799322,1761961084808,500.0,0.00030136,120]
[392799323,1761961085385,500.0,0.00030136,120]
[392799324,1761961087436,632.66,0.00030136,120]
[392799325,1761961087887,500.0,0.00030136,120]
[392799326,1761961093765,500.0,0.00030136,120]
[392799327,1761961095115,500.0,0.00030136,120]
[392799328,1761961097365,500.0,0.00030136,120]
[392799331,1761961101208,500.0,0.00030136,120]
[392799332,1761961105090,500.0,0.00030136,120]
[392799334,1761961109916,500.0,0.00030136,120]
[392799335,1761961111395,500.0,0.00030136,120]
[392799336,1761961113690,523.82671729,0.00030136,120]
[392799337,1761961115222,500.0,0.00030136,120]
[392799338,1761961115695,500.0,0.00030136,120]
[392799341,1761961121986,500.0,0.00030136,120]
[392799342,1761961123180,526.72452537,0.00030136,120]
[392799346,1761961126053,500.0,0.00030136,120]
[392799347,1761961139262,500.0,0.00030136,120]
[392799348,1761961144716,500.0,0.00030136,120]
[392799350,1761961161980,500.0,0.00030136,120]
[392799352,1761961170749,500.0,0.00030136,120]
[392799353,1761961182282,500.0,0.00030136,120]
[392799354,1761961183580,500.0,0.00030136,120]
[392799357,1761961193022,500.0,0.00030136,120]
[392799358,1761961200054,500.0,0.00030136,120]
[392799359,1761961204387,500.0,0.00030136,120]
[392799360,1761961212406,151.4849717,0.00030136,120]
[392799362,1761961215762,500.0,0.00030136,120]
[392799363,1761961217512,500.0,0.00030136,120]
[392799365,1761961224513,500.0,0.00030136,120]
[392799366,1761961225010,500.0,0.00030136,120]
[392799367,1761961225827,500.0,0.00030136,120]
[392799368,1761961225880,500.0,0.00030136,120]
[392799369,1761961228671,196.66290842,0.00030136,120]
[392799370,1761961229317,500.0,0.00030136,120]
[392799372,1761961238116,500.0,0.00030136,120]
[392799373,1761961240369,500.0,0.00030136,120]
[392799374,1761961243490,500.0,0.00030136,120]
[392799375,1761961244479,500.0,0.00030136,120]
[392799376,1761961247307,500.0,0.00030136,120]
[392799377,1761961247654,655.91,0.00030136,120]
[392799378,1761961252448,500.0,0.00030136,120]
[392799379,1761961254517,271.1253379,0.00030136,120]
[392799381,1761961261813,1002.61,0.00030136,120]
[392799382,1761961263304,500.0,0.00030136,120]
[392799383,1761961271036,500.0,0.00030136,120]
[392799384,1761961271419,500.0,0.00030136,120]
[392799385,1761961277047,500.0,0.00030136,120]
[392799386,1761961281639,500.0,0.00030136,120]
[392799387,1761961283551,500.0,0.00030136,120]
[392799388,1761961284137,500.0,0.00030136,120]
[392799389,1761961288065,500.0,0.00030136,120]
[392799390,1761961289110,500.0,0.00030136,120]
[392799391,1761961289438,500.0,0.00030136,120]
[392799392,1761961291018,500.0,0.00030136,120]
[392799393,1761961296908,400.96736412,0.00030136,120]
[392799394,1761961303729,500.0,0.00030136,120]
[392799395,1761961311697,500.0,0.00030136,120]
[392799396,1761961313264,1170.47,0.00030136,120]
[392799397,1761961315933,500.0,0.00030136,120]
[392799398,1761961321536,500.0,0.00030136,120]
[392799399,1761961330798,500.0,0.00030136,120]
[392799400,1761961331547,500.0,0.00030136,120]
[392799401,1761961337018,500.0,0.00030136,120]
[392799402,1761961337599,500.0,0.00030136,120]
[392799403,1761961345511,500.0,0.00030136,120]
[392799404,1761961345800,500.0,0.00030136,120]
[392799405,1761961351507,150.42321064,0.00030136,120]
[392799406,1761961353235,500.0,0.00030136,120]
[392799407,1761961369853,500.0,0.00030136,120]
[392799408,1761961372184,500.0,0.00030136,120]
[392799409,1761961384464,500.0,0.00030136,120]
[392799410,1761961390258,500.0,0.00030136,120]
[392799411,1761961392327,500.0,0.00030136,120]
[392799412,1761961397508,500.0,0.00030136,120]
[392799413,1761961397988,500.0,0.00030136,120]
[392799414,1761961419669,500.0,0.00030136,120]
[392799415,1761961422512,807.06,0.00030136,120]
[392799416,1761961425947,246.45102662,0.00030136,120]
[392799418,1761961439318,500.0,0.00030136,120]
[392799419,1761961441117,500.0,0.00030136,120]
[392799420,1761961447703,500.0,0.00030136,120]
[392799421,1761961456787,175.10368466,0.00030136,120]
[392799422,1761961508206,150.0,0.00013488,2]
[392799423,1761961508418,150.0,0.00013488,2]
[392799424,1761961508563,151.25873288,0.00013488,2]
[392799425,1761961508611,150.0,0.00013488,2]
[392799426,1761961510404,960.84,0.00030136,120]
[392799427,1761961513676,150.0,0.00013488,2]
[392799428,1761961513826,150.24066873,0.00013488,2]
[392799429,1761961513889,150.0,0.00013488,2]
[392799430,1761961516307,150.0,0.00013488,2]
[392799431,1761961516582,151.70335111,0.00013488,2]
[392799432,1761961518922,500.0,0.00030136,120]
[392799433,1761961522332,150.78829024,0.00013488,2]
[392799434,1761961522719,207.3603134,0.00013488,2]
[392799435,1761961526668,500.0,0.00030136,120]
[392799436,1761961528179,500.0,0.00030136,120]
[392799437,1761961529736,280.89738462,0.00013488,2]
[392799438,1761961529845,153.26850078,0.00013488,2]
[392799439,1761961534471,500.0,0.00030136,120]
[392799440,1761961534707,157.67852002,0.00030136,120]
[392799441,1761961557091,500.0,0.00030136,120]
[392799442,1761961570450,500.0,0.00030136,120]
[392799443,1761961578997,500.0,0.00030136,120]
[392799444,1761961580562,299.999,0.00030136,120]
[392799445,1761961583207,500.0,0.00030136,120]
[392799446,1761961587721,500.0,0.00030136,120]
[392799447,1761961591661,500.0,0.00030136,120]
[392799448,1761961608068,500.0,0.00030136,120]
[392799449,1761961613359,222.45828514,0.00030136,120]
[392799451,1761961633354,500.0,0.00030136,120]
[392799452,1761961649957,500.0,0.00030136,120]
[392799453,1761961652126,615.42680335,0.00030136,120]
[392799454,1761961658110,500.0,0.00030136,120]
[392799455,1761961663014,500.0,0.00030136,120]
[392799456,1761961663156,500.0,0.00030136,120]
[392799457,1761961670363,500.0,0.00030136,120]
[392799458,1761961675008,500.0,0.00030136,120]
[392799459,1761961685212,-314.79074267,0.00013699,2]
[392799460,1761961687249,-295.71925733,0.00013699,2]
[392799461,1761961687271,-133.53074267,0.00013711,2]
[392799467,1761961691960,-166.46925733,0.00013711,2]
[392799468,1761961693969,500.0,0.00030136,120]
[392799469,1761961704142,500.0,0.00030136,120]
[392799470,1761961707473,500.0,0.00030136,120]
[392799471,1761961715272,500.0,0.00030136,120]
[392799472,1761961742439,500.0,0.00030136,120]
[392799473,1761961747371,920.8,0.00030136,120]
[392799474,1761961765445,500.0,0.00030136,120]
[392799475,1761961771528,500.0,0.00030136,120]
[392799476,1761961783664,500.0,0.00030136,120]
[392799477,1761961785537,500.0,0.00030136,120]
[392799478,1761961798176,500.0,0.00030136,120]
[392799479,1761961805650,500.0,0.00030136,120]
[392799480,1761961822333,500.0,0.00030136,120]
[392799481,1761961822582,500.0,0.00030136,120]
[392799482,1761961823024,500.0,0.00030136,120]
[392799483,1761961829058,500.0,0.00030136,120]
[392799489,1761961831828,-227.81878828,0.00013723,2]
[392799490,1761961831838,-290.56975448,0.00013723,2]
[392799491,1761961831936,-15.03176517,0.00013723,2]
[392799492,1761961831946,-254.6580653,0.00013723,2]
[392799493,1761961831955,-300.0,0.00013723,2]
[392799494,1761961831965,-300.0,0.00013723,2]
[392799495,1761961831975,-250.0,0.00013723,2]
[392799496,1761961831984,-1000.0,0.00013738,2]
[392799497,1761961831994,-227.81878828,0.00013829,2]
[392799498,1761961832003,-613.16198826,0.00013829,2]
[392799499,1761961832013,-492.62,0.00013829,2]
[392799501,1761961832023,-216.70485696,0.00013843,2]
[392799503,1761961832033,-150.0,0.00013987,2]
[392799505,1761961832043,-150.0,0.00013987,2]
[392799507,1761961832052,-200.0,0.00014056,2]
[392799509,1761961832061,-227.81878828,0.00014064,2]
[392799511,1761961832071,-591.63202862,0.00014147,2]
[392799513,1761961832080,-150.0,0.00014237,2]
[392799514,1761961832089,-150.0,0.00014237,2]
[392799515,1761961832099,-150.0,0.00014487,2]
[392799516,1761961832109,-150.0,0.00014487,2]
[392799517,1761961832118,-1200.0,0.00014517,2]
[392799518,1761961832128,-787.00388739,0.00014518,2]
[392799519,1761961832137,-248.71531821,0.00014518,2]
[392799520,1761961832147,-168.0,0.00014526,2]
[392799521,1761961832157,-168.0,0.00014562,2]
[392799522,1761961832166,-300.0,0.00014586,2]
[392799523,1761961832176,-217.0,0.00014587,2]
[392799524,1761961832187,-199.1310217,0.00014662,2]
[392799525,1761961832199,-168.0,0.00014677,2]
[392799526,1761961832209,-978.0,0.00014697,2]
[392799527,1761961832219,-150.0,0.00014697,2]
[392799528,1761961832229,-168.0,0.00014783,2]
[392799529,1761961832239,-2140.8871,0.000148,2]
[392799530,1761961832248,-217.0,0.00014813,2]
[392799531,1761961832258,-168.0,0.00014858,2]
[392799532,1761961832267,-162.60106139,0.00014864,2]
[392799533,1761961832277,-646.65982734,0.00014864,2]
[392799534,1761961832286,-505.43472567,0.00014864,2]
[392799535,1761961832296,-250.0,0.00014864,2]
[392799536,1761961832306,-250.0,0.00014864,2]
[392799537,1761961832315,-250.0,0.00014864,2]
[392799538,1761961832325,-264.81914768,0.00014864,2]
[392799539,1761961832335,-322.6107,0.00014864,2]
[392799540,1761961832344,-514.84070869,0.00014864,2]
[392799541,1761961832353,-501.63848239,0.00014873,2]
[392799542,1761961832363,-507.39880193,0.00014873,2]
[392799543,1761961832372,-405.9200075,0.00014873,2]
[392799544,1761961832382,-500.0,0.00014873,2]
[392799545,1761961832392,-500.0,0.00014873,2]
[392799546,1761961832402,-500.0,0.00014873,2]
[392799547,1761961832413,-500.0,0.00014873,2]
[392799548,1761961832422,-171.42949051,0.00014873,2]
[392799549,1761961832432,-170.4507816,0.00014873,2]
[392799550,1761961832442,-502.00263233,0.00014873,2]
[392799551,1761961832451,-175.280547,0.00014873,2]
[392799552,1761961832462,-500.0,0.00014873,2]
[392799553,1761961832471,-502.04022264,0.00014873,2]
[392799554,1761961832481,-503.3856986,0.00014873,2]
[392799555,1761961832491,-275.51235465,0.00014873,2]
[392799556,1761961832503,-224.48764535,0.00014873,2]
[392799557,1761961832512,-505.53576709,0.00014873,2]
[392799558,1761961832522,-500.0,0.00014899,2]
[392799559,1761961832532,-21838.49745907,0.000149,2]
[392799560,1761961837115,500.0,0.00030136,120]
[392799562,1761961837644,-104838.49884093,0.000149,2]
[392799563,1761961837654,-12752.23092674,0.000149,2]
[392799564,1761961837663,-1835.4800898,0.000149,2]
[392799565,1761961837673,-210.97097766,0.000149,2]
[392799566,1761961837683,-636.75494702,0.000149,2]
[392799567,1761961837693,-168.16291714,0.000149,2]
[392799568,1761961837702,-1111.10053981,0.00014903,2]
[392799569,1761961837711,-217.0,0.00014908,2]
[392799570,1761961837721,-474.44,0.00014909,2]
[392799571,1761961837730,-177.11,0.00014985,2]
[392799572,1761961837740,-156.56696944,0.00014986,2]
[392799573,1761961837751,-159.56605483,0.00014986,2]
[392799574,1761961837761,-199.92935098,0.00014986,2]
[392799575,1761961837774,-165.00114208,0.00014986,2]
[392799576,1761961837784,-176.0,0.00014986,2]
[392799577,1761961837794,-164.0,0.00014986,2]
[392799578,1761961837803,-160.78349179,0.00014986,2]
[392799579,1761961837812,-157.37634659,0.00014986,2]
[392799580,1761961837822,-151.0,0.00014997,2]
[392799581,1761961837831,-500.0,0.00014999,2]
[392799582,1761961837841,-500.0,0.00014999,2]
[392799583,1761961837851,-500.0,0.00014999,2]
[392799584,1761961837860,-194.17709543,0.00014999,2]
[392799585,1761961837870,-222.88736885,0.00014999,2]
[392799586,1761961837879,-500.0,0.00014999,2]
[392799587,1761961837889,-500.0,0.00014999,2]
[392799588,1761961837898,-500.0,0.00014999,2]
[392799589,1761961837908,-500.0,0.00014999,2]
[392799590,1761961837918,-500.0,0.00014999,2]
[392799591,1761961837927,-500.0,0.00014999,2]
[392799592,1761961837937,-250.0,0.00014999,2]
[392799593,1761961837946,-500.0,0.00014999,2]
[392799594,1761961837956,-500.0,0.00014999,2]
[392799595,1761961837969,-500.0,0.00014999,2]
[392799596,1761961837979,-300.0,0.00014999,2]
[392799597,1761961837989,-500.0,0.00014999,2]
[392799598,1761961837999,-500.0,0.00014999,2]
[392799599,1761961838009,-500.0,0.00014999,2]
[392799600,1761961838019,-500.0,0.00014999,2]
[392799601,1761961838029,-500.0,0.00014999,2]
[392799602,1761961838039,-199.99906883,0.00014999,2]
[392799603,1761961838049,-442.07370312,0.00014999,2]
[392799604,1761961838059,-161.9854213,0.00014999,2]
[392799605,1761961838069,-500.0,0.00014999,2]
[392799607,1761961838079,-500.0,0.00014999,2]
[392799609,1761961838089,-450.78400304,0.00014999,2]
[392799611,1761961838098,-150.0,0.00014999,2]
[392799613,1761961838108,-500.0,0.00014999,2]
[392799615,1761961838118,-500.0,0.00014999,2]
[392799617,1761961838127,-178.39403735,0.00014999,2]
[392799619,1761961838136,-500.0,0.00014999,2]
[392799620,1761961838146,-507.2997996,0.00014999,2]
[392799621,1761961838155,-500.0,0.00014999,2]
[392799622,1761961838401,-500.0,0.00014999,2]
[392799623,1761961838412,-511.6795321,0.00014999,2]
[392799624,1761961838422,-500.0,0.00014999,2]
[392799625,1761961838432,-507.36719233,0.00014999,2]
[392799626,1761961838442,-446.07,0.00014999,2]
[392799627,1761961838455,-508.42744493,0.00014999,2]
[392799628,1761961838464,-503.45281064,0.00014999,2]
[392799629,1761961838486,-188.28140626,0.00014999,2]
[392799630,1761961838499,-515.4296707,0.00014999,2]
[392799631,1761961838509,-500.0,0.00014999,2]
[392799632,1761961838520,-500.0,0.00014999,2]
[392799633,1761961838530,-500.0,0.00014999,2]
[392799634,1761961838541,-501.53597641,0.00014999,2]
[392799635,1761961838553,-500.0,0.00014999,2]
[392799636,1761961838564,-522.44419674,0.00014999,2]
[392799637,1761961838574,-500.0,0.00014999,2]
[392799638,1761961838584,-500.0,0.00014999,2]
[392799639,1761961838595,-294.76815458,0.00014999,2]
[392799640,1761961838605,-500.0,0.00014999,2]
[392799641,1761961838615,-500.0,0.00014999,2]
[392799642,1761961838626,-429.79976124,0.00014999,2]
[392799643,1761961838636,-500.0,0.00014999,2]
[392799644,1761961838646,-515.971367,0.00014999,2]
[392799645,1761961838657,-512.08617607,0.00014999,2]
[392799646,1761961838667,-500.0,0.00014999,2]
[392799647,1761961838677,-500.0,0.00014999,2]
[392799648,1761961838688,-500.0,0.00014999,2]
[392799649,1761961838698,-500.0,0.00014999,2]
[392799650,1761961838708,-500.0,0.00014999,2]
[392799651,1761961838718,-500.0,0.00014999,2]
[392799652,1761961838728,-500.0,0.00014999,2]
[392799653,1761961838738,-500.0,0.00014999,2]
[392799654,1761961838748,-500.0,0.00014999,2]
[392799655,1761961838758,-500.0,0.00014999,2]
[392799656,1761961838768,-500.0,0.00014999,2]
[392799657,1761961838778,-500.0,0.00014999,2]
[392799658,1761961838789,-500.0,0.00014999,2]
[392799659,1761961838799,-500.0,0.00014999,2]
[392799660,1761961838809,-500.0,0.00014999,2]
[392799661,1761961838820,-500.0,0.00014999,2]
[392799662,1761961838835,-500.0,0.00014999,2]
[392799663,1761961838846,-203.05595788,0.00014999,2]
[392799664,1761961838857,-500.0,0.00014999,2]
[392799665,1761961838868,-500.0,0.00014999,2]
[392799666,1761961838878,-514.81284198,0.00014999,2]
[392799667,1761961838889,-500.0,0.00014999,2]
[392799668,1761961838900,-165.90658261,0.00014999,2]
[392799669,1761961838911,-573.85637891,0.00014999,2]
[392799670,1761961838922,-334.09341739,0.00014999,2]
[392799671,1761961838933,-500.0,0.00014999,2]
[392799672,1761961838944,-500.0,0.00014999,2]
[392799673,1761961838955,-1371168.2695053,0.00015,2]
[392799674,1761961838967,-2027.73488218,0.00015,2]
[392799675,1761961838978,-7893.81958783,0.00015,2]
[392799676,1761961838988,-4182837.56697663,0.00015,2]
[392799677,1761961839016,-24693.58646156,0.00015,2]
[392799678,1761961839028,-18028.01015146,0.00015,2]
[392799679,1761961839040,-4754.57763485,0.00015,2]
[392799680,1761961839054,-597.07654985,0.00015,2]
[392799681,1761961839067,-812.65708634,0.00015,2]
[392799682,1761961839744,-1450.4516536,0.000149,2]
[392799683,1761961839754,-34825.7544546,0.00015,2]
[392799684,1761961839799,-366167.87234477,0.00015,2]
[392799685,1761961839909,-2566.29100436,0.00015,2]
[392799686,1761961839921,-841.0,0.00015,2]
[392799687,1761961839934,-3430.27801453,0.00015,2]
[392799691,1761961842694,-1710.92822044,0.00015,2]
[392799692,1761961842749,-2849.88999533,0.00015,2]
[392799693,1761961842910,-1178.46,0.00015,2]
[392799694,1761961842922,-3981.16016373,0.00015,2]
[392799695,1761961842965,-946.64579893,0.00015,2]
[392799697,1761961844288,177.65428394,0.00030136,120]
[392799698,1761961845849,-455.95,0.00015,2]
[392799699,1761961845860,-1179.61950838,0.00015,2]
[392799700,1761961845872,-40220.45964837,0.00015,2]
[392799701,1761961845900,-5570.45453968,0.00015,2]
[392799702,1761961845911,-614.0905448,0.00015,2]
[392799703,1761961848871,500.0,0.00030136,120]
[392799704,1761961849143,500.0,0.00030136,120]
[392799705,1761961857903,500.0,0.00030136,120]
[392799706,1761961865238,193.45251841,0.00030136,120]
[392799707,1761961867491,500.0,0.00030136,120]
[392799708,1761961868816,500.0,0.00030136,120]
[392799709,1761961876569,500.0,0.00030136,120]
[392799710,1761961878966,500.0,0.00030136,120]
[392799711,1761961881697,500.0,0.00030136,120]
[392799712,1761961889201,500.0,0.00030136,120]
[392799713,1761961905757,1121.7,0.00030136,120]
[392799714,1761961907160,1033.73889372,0.00030136,120]
[392799715,1761961913552,500.0,0.00030136,120]
[392799716,1761961917899,500.0,0.00030136,120]
[392799717,1761961932263,500.0,0.00030136,120]
[392799718,1761961935955,500.0,0.00030136,120]
[392799719,1761961943737,500.0,0.00030136,120]
[392799720,1761961945514,500.0,0.00030136,120]
[392799721,1761961951015,500.0,0.00030136,120]
[392799722,1761961957535,500.0,0.00030136,120]
[392799723,1761961957935,500.0,0.00030136,120]
[392799724,1761961962931,500.0,0.00030136,120]
[392799725,1761961966470,500.0,0.00030136,120]
[392799726,1761961967501,500.0,0.00030136,120]
[392799727,1761961967663,500.0,0.00030136,120]
[392799728,1761961970779,500.0,0.00030136,120]
[392799729,1761961973058,500.0,0.00030136,120]
[392799730,1761961973822,500.0,0.00030136,120]
[392799731,1761961977706,500.0,0.00030136,120]
[392799732,1761961980930,500.0,0.00030136,120]
[392799733,1761961981779,606.3,0.00030136,120]
[392799734,1761961983956,882.44,0.00030136,120]
[392799735,1761961984500,500.0,0.00030136,120]
[392799736,1761961984572,500.0,0.00030136,120]
[392799737,1761961985271,500.0,0.00030136,120]
[392799738,1761961990106,500.0,0.00030136,120]
[392799739,1761961990285,460.55425964,0.00030136,120]
[392799740,1761961993768,500.0,0.00030136,120]
[392799741,1761961994322,500.0,0.00030136,120]
[392799742,1761961995171,500.0,0.00030136,120]
[392799743,1761961995554,500.0,0.00030136,120]
[392799744,1761961997126,500.0,0.00030136,120]
[392799745,1761961998836,500.0,0.00030136,120]
[392799746,1761961999715,500.0,0.00030136,120]
[392799747,1761962000878,500.0,0.00030136,120]
[392799748,1761962003810,500.0,0.00030136,120]
[392799749,1761962020026,517.01864021,0.00030136,120]
[392799750,1761962025795,500.0,0.00030136,120]
[392799751,1761962029015,500.0,0.00030136,120]
[392799752,1761962032609,500.0,0.00030136,120]
[392799753,1761962037738,500.0,0.00030136,120]
[392799754,1761962042855,500.0,0.00030136,120]
[392799755,1761962050041,500.0,0.00030136,120]
[392799756,1761962052881,500.0,0.00030136,120]
[392799757,1761962053482,500.0,0.00030136,120]
[392799758,1761962062500,500.0,0.00030136,120]
[392799759,1761962067561,500.0,0.00030136,120]
[392799760,1761962068270,999.0,0.00014074,3]
[392799761,1761962073071,500.0,0.00030136,120]
[392799762,1761962075281,500.0,0.00030136,120]
[392799763,1761962082728,500.0,0.00030136,120]
[392799764,1761962091368,500.0,0.00030136,120]
[392799765,1761962099300,500.0,0.00030136,120]
[392799766,1761962100547,500.0,0.00030136,120]
[392799767,1761962103599,500.0,0.00030136,120]
[392799768,1761962110811,500.0,0.00030136,120]
[392799769,1761962116745,500.0,0.00030136,120]
[392799770,1761962117530,500.0,0.00030136,120]
[392799771,1761962126083,628.58,0.00030136,120]
[392799772,1761962132197,500.0,0.00030136,120]
[392799773,1761962132552,500.0,0.00030136,120]
[392799774,1761962138278,500.0,0.00030136,120]
[392799775,1761962145987,500.0,0.00030136,120]
[392799776,1761962147047,500.0,0.00030136,120]
[392799779,1761962158847,500.0,0.00030136,120]
[392799780,1761962162397,500.0,0.00030136,120]
[392799781,1761962168017,500.0,0.00030136,120]
[392799782,1761962170841,342.81342636,0.00030136,120]
[392799783,1761962170909,500.0,0.00030136,120]
[392799784,1761962173008,500.0,0.00030136,120]
[392799785,1761962178674,500.0,0.00030136,120]
[392799786,1761962179262,500.0,0.00030136,120]
[392799787,1761962182341,500.0,0.00030136,120]
[392799788,1761962187210,573.47880315,0.00030136,120]
[392799789,1761962199099,500.0,0.00030136,120]
[392799790,1761962199632,500.0,0.00030136,120]
[392799791,1761962208839,500.0,0.00030136,120]
[392799792,1761962212959,500.0,0.00030136,120]
[392799793,1761962215120,500.0,0.00030136,120]
[392799794,1761962222338,500.0,0.00030136,120]
[392799795,1761962224397,500.0,0.00030136,120]
[392799796,1761962227244,500.0,0.00030136,120]
[392799797,1761962227888,500.0,0.00030136,120]
[392799798,1761962229170,500.0,0.00030136,120]
[392799799,1761962232221,845.67,0.00030136,120]
[392799800,1761962235728,500.0,0.00030136,120]
[392799801,1761962237117,500.0,0.00030136,120]
[392799802,1761962246108,500.0,0.00030136,120]
[392799803,1761962247127,500.0,0.00030136,120]
[392799804,1761962250689,500.0,0.00030136,120]
[392799805,1761962251103,500.0,0.00030136,120]
[392799806,1761962264661,500.0,0.00030136,120]
[392799807,1761962280158,500.0,0.00030136,120]
[392799808,1761962282198,500.0,0.00030136,120]
[392799809,1761962305546,773.43,0.00030136,120]
[392799810,1761962312261,500.0,0.00030136,120]
[392799811,1761962330709,500.0,0.00030136,120]
[392799812,1761962338962,500.0,0.00030136,120]
[392799814,1761962382262,500.0,0.00030136,120]
[392799816,1761962393987,500.0,0.00030136,120]
[392799818,1761962411230,500.0,0.00030136,120]
[392799819,1761962414516,500.0,0.00030136,120]
[392799820,1761962418109,500.0,0.00030136,120]
[392799821,1761962419840,500.0,0.00030136,120]
[392799822,1761962420559,500.0,0.00030136,120]
[392799823,1761962428859,500.0,0.00030136,120]
[392799824,1761962436642,500.0,0.00030136,120]
[392799825,1761962440585,500.0,0.00030136,120]
[392799826,1761962446920,500.0,0.00030136,120]
[392799827,1761962459253,500.0,0.00030136,120]
[392799828,1761962463515,810.43,0.00030136,120]
[392799829,1761962463936,500.0,0.00030136,120]
[392799830,1761962472821,500.0,0.00030136,120]
[392799831,1761962473533,500.0,0.00030136,120]